bitfinex-derivatives/quotes_ETHF0:USTF0_20250331
["timestamp","ask_amount","ask_price","bid_price","bid_amount"]
[1743393056962,1.11101,1800.3,1800.2,1.4138]
[1743393057363,2.49701,1800.3,1800.2,1.4138]
[1743393057967,5.70481,1800.3,1800.2,1.4138]
[1743393058168,1.11122,1800.0,1799.8,1.1113]
[1743393058469,1.11122,1800.0,1799.9,1.4138]
[1743393058867,2.4972,1800.0,1799.9,1.4138]
[1743393060970,1.386,1800.0,1799.6,1.4219]
[1743393061273,1.11144,1799.6,1799.5,0.00835003]
[1743393061469,4.31924,1799.6,1799.5,0.00835003]
[1743393061970,3.2078,1799.6,1799.5,1.49725003]
[1743393062170,3.2078,1799.6,1799.5,2.60875003]
[1743393062371,2.56008,1799.9,1799.6,1.11138]
[1743393062565,1.11132,1799.8,1799.7,1.4516]
[1743393063074,2.51162,1799.8,1799.7,1.4516]
[1743393063274,1.4003,1799.8,1799.5,7.38815003]
[1743393063474,1.11143,1799.7,1799.6,1.4516]
[1743393063669,1.11144,1799.6,1799.5,0.00835003]
[1743393063863,1.4003,1799.8,1799.6,1.11144]
[1743393064063,1.4003,1799.8,1799.7,1.4516]
[1743393064263,1.4003,1799.8,1799.7,2.56298]
[1743393064474,1.4003,1799.8,1799.7,1.4516]
[1743393064674,1.4003,1799.8,1799.7,2.56298]
[1743393064969,1.11132,1799.8,1799.7,1.4516]
[1743393065371,1.11144,1799.6,1799.5,0.00835003]
[1743393066071,2.59894,1799.6,1799.5,1.44375003]
[1743393066572,1.4875,1799.6,1799.5,2.55525003]
[1743393066770,3.2078,1799.9,1799.5,1.44375003]
[1743393066973,4.6953,1799.9,1799.5,3.24223003]
[1743393067275,1.11144,1799.6,1799.5,2.13075003]
[1743393067575,1.11144,1799.6,1799.5,1.44375003]
[1743393067767,2.59894,1799.6,1799.5,1.44375003]
[1743393068171,1.4875,1799.6,1799.5,1.44375003]
[1743393068383,1.11144,1799.6,1799.5,1.44375003]
[1743393068577,2.58274,1799.6,1799.5,1.44375003]
[1743393068874,2.58274,1799.6,1799.5,0.00835003]
[1743393069074,3.27824,1799.6,1799.5,0.00835003]
[1743393069968,2.1668,1799.6,1799.5,2.54925003]
[1743393070170,1.11143,1799.7,1799.5,2.54925003]
[1743393070772,1.11144,1799.6,1799.5,1.43775003]
[1743393070978,3.2078,1799.7,1799.5,1.43775003]
[1743393071177,1.11144,1799.6,1799.5,1.43775003]
[1743393071774,1.11134,1799.8,1799.6,1.11142]
[1743393071981,1.11134,1799.8,1799.7,1.4944]
[1743393072179,2.57094,1799.8,1799.7,1.4944]
[1743393073178,4.3191,1799.9,1799.7,2.60578]
[1743393073576,1.11132,1799.8,1799.7,1.4944]
[1743393073777,3.2078,1799.9,1799.8,1.11132]
[1743393074278,1.4596,1800.1,1800.0,1.11116]
[1743393074279,3.2078,1800.1,1800.0,1.11116]
[1743393074478,1.11101,1800.3,1800.0,1.11116]
[1743393074676,3.2078,1800.4,1800.1,2.59453]
[1743393074869,3.8901,1800.7,1800.2,1.4834]
[1743393075180,1.79309,1800.7,1800.4,1.11093]
[1743393075380,4.31863,1800.6,1800.5,1.4834]
[1743393075583,2.61103,1800.6,1800.5,1.4834]
[1743393076072,1.5002,1800.6,1800.5,1.4834]
[1743393076268,1.11089,1800.5,1800.4,0.00835003]
[1743393076477,1.11116,1800.1,1799.8,4.158]
[1743393076679,4.3189,1800.2,1800.1,1.4834]
[1743393076879,4.708,1800.4,1800.1,1.4834]
[1743393077079,1.11107,1800.2,1800.1,1.4834]
[1743393077469,4.31887,1800.2,1800.1,1.4834]
[1743393077670,1.11107,1800.2,1800.1,1.4834]
[1743393077868,3.2078,1800.2,1800.1,1.4834]
[1743393078081,4.6993,1800.2,1800.1,1.4834]
[1743393078482,5.81037,1800.2,1800.1,1.4834]
[1743393079681,2.60257,1800.2,1800.1,1.4834]
[1743393079876,1.4915,1800.2,1800.1,2.59453]
[1743393080079,1.4915,1800.2,1800.1,1.4834]
[1743393080276,1.4915,1800.2,1800.1,2.59453]
[1743393080582,1.11113,1800.1,1800.0,0.00835003]
[1743393081177,1.11138,1799.7,1799.6,5.6402]
[1743393081379,3.2078,1799.8,1799.0,3.2078]
[1743393081675,1.11178,1799.1,1798.8,4.8789]
[1743393081881,1.11173,1799.2,1798.9,2.60504]
[1743393082082,1.11175,1799.1,1798.9,2.60504]
[1743393082274,1.11181,1799.0,1798.9,1.50155003]
[1743393083277,1.11181,1799.0,1798.9,0.00835003]
[1743393083483,4.31961,1799.0,1798.9,0.00835003]
[1743393083779,1.11181,1799.0,1798.9,0.00835003]
[1743393084185,2.55121,1799.0,1798.9,0.00835003]
[1743393084576,4.31959,1799.1,1798.9,0.00835003]
[1743393084784,2.55119,1799.1,1798.9,1.50895003]
[1743393085086,5.75899,1799.1,1798.9,1.50895003]
[1743393085480,0.75015003,1799.2,1798.9,1.50895003]
[1743393085773,1.11175,1799.1,1798.9,1.50895003]
[1743393085975,1.11181,1799.0,1798.9,1.50895003]
[1743393086576,4.3196,1799.1,1798.9,1.50895003]
[1743393086781,0.00835003,1799.2,1798.9,1.50895003]
[1743393086983,0.00835003,1799.2,1799.1,1.11175]
[1743393087179,0.00835003,1799.2,1799.1,6.71795]
[1743393087781,3.2078,1799.7,1799.5,1.11149]
[1743393088077,3.2078,1799.7,1799.1,16.43919034]
[1743393088078,4.31921,1799.7,1799.6,1.4582]
[1743393089390,3.2078,1799.7,1799.6,1.4582]
[1743393089588,4.31918,1799.7,1799.6,1.4582]
[1743393089888,3.2078,1799.7,1799.3,3.2078]
[1743393090090,4.31934,1799.5,1799.3,1.11161]
[1743393090277,4.31934,1799.5,1799.4,1.4157]
[1743393090584,3.2078,1799.5,1799.4,1.4157]
[1743393090784,3.2078,1799.7,1799.4,1.4157]
[1743393091287,4.31923,1799.7,1799.4,1.4157]
[1743393091586,4.31923,1799.7,1799.4,2.52723]
[1743393091788,4.31923,1799.7,1799.5,1.1115]
[1743393091989,3.2078,1799.7,1799.6,2.52714]
[1743393092183,4.31918,1799.7,1799.6,1.4157]
[1743393092979,5.72218,1799.7,1799.6,1.4157]
[1743393095487,1.11161,1799.4,1799.1,3.2078]
[1743393095790,1.11161,1799.4,1799.3,1.3871]
[1743393096184,2.58951,1799.4,1799.3,1.3871]
[1743393097286,4.31932,1799.5,1799.3,2.49869]
[1743393097481,3.2078,1799.5,1799.3,1.3871]
[1743393097688,3.2078,1799.5,1799.4,2.49867]
[1743393097887,4.3193,1799.5,1799.4,1.3871]
[1743393098191,5.7972,1799.5,1799.4,1.3871]
[1743393098696,5.7972,1799.5,1799.1,3.2078]
[1743393098697,1.11169,1799.2,1799.1,3.2078]
[1743393098895,1.1116,1799.4,1799.1,5.70342]
[1743393099094,2.5029,1799.4,1799.2,1.3839]
[1743393099696,1.11163,1799.3,1799.2,1.3839]
[1743393099896,4.5991,1799.3,1798.9,0.00835003]
[1743393100091,1.11175,1799.1,1799.0,1.3839]
[1743393101783,6.41187,1799.3,1799.0,1.3839]
[1743393101985,6.41187,1799.3,1799.1,1.11173]
[1743393102184,5.3002,1799.3,1799.2,1.3634]
[1743393102384,4.5991,1799.3,1799.2,2.47509]
[1743393102590,3.2078,1799.5,1799.4,1.11157]
[1743393103398,3.2078,1799.5,1799.4,5.22057]
[1743393104094,0.00835003,1799.8,1799.7,1.11138]
[1743393104595,0.00835003,1799.8,1799.7,5.21838]
[1743393104999,0.00835003,1799.8,1799.7,6.72888]
[1743393105796,0.00835003,1799.8,1799.7,7.42848]
[1743393106294,3.2078,1800.1,1799.7,15.9110826]
[1743393106487,3.2078,1800.1,1800.0,1.1112]
[1743393106687,3.2078,1800.1,1800.0,5.2162]
[1743393109896,3.2078,1800.1,1800.0,4.105]
[1743393110100,3.2078,1800.1,1799.8,3.9323]
[1743393110101,3.2078,1799.2,1797.8,3.2078]
[1743393110391,1.11231,1798.2,1798.1,1.5039]
[1743393110593,4.32011,1798.2,1798.1,1.5039]
[1743393110795,4.32011,1798.2,1798.1,8.4754532]
[1743393111188,3.2078,1798.2,1798.1,8.4754532]
[1743393111793,3.2078,1798.2,1798.1,5.8240232]
[1743393112200,3.2078,1798.5,1798.2,3.2077532]
[1743393112390,3.2078,1798.5,1798.3,6.83461]
[1743393112590,3.2078,1798.5,1798.4,4.6181532]
[1743393114001,3.2078,1798.5,1798.4,5.7303332]
[1743393114199,3.2078,1798.5,1798.4,4.6181532]
[1743393114899,3.2078,1798.5,1798.4,5.7303332]
[1743393115204,3.2078,1798.5,1798.4,4.6181532]
[1743393115797,1.3877,1798.9,1798.6,1.11206]
[1743393115798,3.2078,1798.7,1798.6,1.11206]
[1743393115996,3.2078,1798.7,1798.5,4.3198532]
[1743393116197,3.2078,1798.7,1798.6,1.3732]
[1743393116398,3.2078,1798.7,1798.6,4.5809532]
[1743393116599,3.2078,1798.7,1798.6,32.1809532]
[1743393117203,3.2078,1798.7,1798.6,4.5809532]
[1743393117404,4.3198,1798.7,1798.6,4.5809532]
[1743393119803,4.3198,1798.7,1798.6,3.2077532]
[1743393120509,1.11218,1798.4,1798.3,1.4348]
[1743393120718,4.31998,1798.4,1798.3,1.4348]
[1743393121008,4.31998,1798.4,1798.3,3.5088532]
[1743393121209,4.31998,1798.4,1798.3,2.0740532]
[1743393122510,3.2078,1798.4,1798.3,3.1863032]
[1743393123413,3.2078,1798.4,1798.3,7.4443032]
[1743393123605,4.31998,1798.4,1798.3,6.3320532]
[1743393124105,3.2078,1798.4,1798.3,8.8788032]
[1743393125309,4.31998,1798.4,1798.3,7.7665532]
[1743393125503,3.2078,1798.4,1798.3,8.8788032]
[1743393126412,4.31998,1798.4,1798.3,7.7665532]
[1743393128009,4.31998,1798.4,1798.3,3.5085532]
[1743393128210,4.31998,1798.4,1798.3,2.0740532]
[1743393130415,5.3746,1798.6,1798.3,2.0740532]
[1743393130598,5.3746,1798.6,1798.1,8.3853]
[1743393130599,5.3746,1798.6,1798.4,4.6558132]
[1743393130909,5.3746,1798.6,1798.5,1.11212]
[1743393131109,6.48666,1798.6,1798.5,3.5436532]
[1743393131706,5.3746,1798.6,1798.3,1.1122]
[1743393131898,3.2078,1798.4,1798.3,1.1122]
[1743393132303,3.2078,1798.4,1798.3,3.1862532]
[1743393134514,5.3746,1798.6,1798.5,1.11212]
[1743393134710,5.3746,1798.6,1798.5,3.1861732]
[1743393134908,6.48666,1798.6,1798.5,2.0740532]
[1743393135305,6.48666,1798.6,1798.5,3.4406532]
[1743393136812,4.31986,1798.6,1798.5,4.5527732]
[1743393137005,3.2078,1798.6,1798.5,4.5527732]
[1743393137200,4.31986,1798.6,1798.5,4.5527732]
[1743393138308,3.2078,1798.7,1798.5,3.4406532]
[1743393138506,4.6681,1798.9,1798.7,1.11194]
[1743393138710,5.77997,1798.9,1798.8,1.3822]
[1743393139011,4.6681,1798.9,1798.8,4.5681932]
[1743393139209,16.80021805,1799.4,1799.3,1.11163]
[1743393139409,16.80021805,1799.4,1799.2,4.197]
[1743393139612,21.11958805,1799.4,1799.3,1.3822]
[1743393141014,4.31937,1799.4,1799.3,1.3822]
[1743393144116,1.11163,1799.3,1799.2,0.00835003]
[1743393144311,2.77938,1799.1,1798.3,0.7486]
[1743393144510,1.11212,1798.5,1798.3,3.27161]
[1743393144712,1.11212,1798.5,1798.4,1.4108]
[1743393146018,1.11218,1798.4,1798.3,0.00835003]
[1743393146216,4.31998,1798.4,1797.9,0.7486]
[1743393146419,1.11249,1797.9,1797.8,1.4108]
[1743393146717,1.11268,1797.6,1797.5,1.4108]
[1743393146916,4.32048,1797.6,1797.5,1.4108]
[1743393147118,3.2078,1797.6,1797.1,0.6856]
[1743393147314,1.11277,1797.5,1797.3,1.4101]
[1743393147616,3.2078,1797.4,1797.3,1.4101]
[1743393147818,4.3206,1797.4,1797.3,1.4101]
[1743393149518,3.2078,1797.4,1797.3,1.4101]
[1743393150124,4.3206,1797.4,1797.3,1.4101]
[1743393152425,3.2078,1797.4,1797.3,1.4101]
[1743393152722,3.2078,1797.4,1797.3,2.52296]
[1743393153025,3.2078,1797.4,1797.3,6.68396]
[1743393154822,3.2078,1797.4,1797.3,1.4101]
[1743393154823,4.3206,1797.4,1797.3,1.4101]
[1743393155023,5.756,1797.4,1797.3,1.4101]
[1743393155221,1.11286,1797.3,1797.2,0.00835003]
[1743393155523,2.54826,1797.3,1797.2,0.00835003]
[1743393155909,1.11336,1796.5,1796.3,3.2078]
[1743393156121,3.2078,1796.6,1796.4,1.4842]
[1743393156317,3.2078,1796.8,1796.6,1.11328]
[1743393156521,1.11318,1796.8,1796.7,1.385]
[1743393156822,4.32098,1796.8,1796.7,1.385]
[1743393157225,1.11324,1796.7,1796.6,0.00835003]
[1743393157518,2.57734,1796.7,1796.6,0.00835003]
[1743393157823,1.11324,1796.7,1796.6,0.00835003]
[1743393158518,4.6719,1796.8,1796.6,0.00835003]
[1743393158827,1.11324,1796.7,1796.6,0.00835003]
[1743393159017,2.57734,1796.7,1796.6,0.00835003]
[1743393159216,3.2078,1796.8,1796.6,0.00835003]
[1743393159417,4.32102,1796.8,1796.6,1.12163003]
[1743393159619,4.32102,1796.8,1796.7,1.3649]
[1743393160231,5.80852,1796.8,1796.7,1.3649]
[1743393160526,1.11324,1796.7,1796.6,0.00835003]
[1743393160722,2.60074,1796.7,1796.6,0.00835003]
[1743393161330,4.32101,1796.8,1796.6,0.00835003]
[1743393161927,1.11324,1796.7,1796.6,0.00835003]
[1743393162426,5.80072,1796.8,1796.6,0.00835003]
[1743393163329,0.00835003,1796.9,1796.6,4.19835003]
[1743393163526,1.11295,1797.2,1796.7,12.5443221]
[1743393163734,3.2078,1797.2,1796.7,12.5443221]
[1743393163920,3.2078,1797.4,1797.1,1.11299]
[1743393164119,1.11286,1797.3,1797.2,1.3757]
[1743393164628,1.11286,1797.3,1796.7,3.9603]
[1743393164827,3.2078,1797.0,1796.6,0.00835003]
[1743393165034,4.32102,1796.8,1796.6,0.00835003]
[1743393165331,4.32102,1796.8,1796.6,1.12163003]
[1743393165332,3.2078,1796.8,1796.6,1.12163003]
[1743393165529,4.32099,1796.8,1796.6,0.00835003]
[1743393166036,4.32099,1796.8,1796.6,1.43615003]
[1743393166231,1.11324,1796.7,1796.6,1.43615003]
[1743393166436,4.32101,1796.8,1796.6,2.54945003]
[1743393166630,3.2078,1796.8,1796.6,1.43615003]
[1743393166832,1.4797,1796.9,1796.7,2.54101]
[1743393166833,1.11315,1796.9,1796.7,2.54101]
[1743393167026,1.11311,1796.9,1796.7,1.4278]
[1743393167229,1.11315,1796.9,1796.7,2.54103]
[1743393167426,1.11312,1796.9,1796.7,2.54099]
[1743393167626,3.2078,1797.0,1796.9,1.11311]
[1743393167837,1.11293,1797.2,1796.9,1.11308]
[1743393168135,1.11293,1797.2,1797.0,2.54085]
[1743393168338,2.56689,1797.3,1797.1,1.11299]
[1743393168530,3.21615003,1797.4,1797.2,2.62453]
[1743393168833,4.32896003,1797.4,1797.2,2.62453]
[1743393170139,3.21615003,1797.4,1797.2,2.62453]
[1743393170331,4.32897003,1797.4,1797.2,2.62453]
[1743393170941,3.21615003,1797.4,1797.3,1.11286]
[1743393171431,3.21615003,1797.4,1797.2,2.62448]
[1743393171731,4.32895003,1797.4,1797.2,1.5116]
[1743393171938,4.32895003,1797.4,1797.2,2.62448]
[1743393172640,3.21615003,1797.4,1797.3,1.11286]
[1743393173140,3.21615003,1797.4,1797.3,2.51676]
[1743393173541,3.21615003,1797.4,1797.3,1.11286]
[1743393173743,4.32895003,1797.4,1797.3,1.11286]
[1743393174440,3.21615003,1797.4,1797.3,1.11286]
[1743393176632,0.00835003,1797.4,1797.3,1.11286]
[1743393179738,0.00835003,1797.4,1797.2,1.5116]
[1743393179943,0.00835003,1797.4,1797.2,6.78648]
[1743393180144,1.11286,1797.3,1797.2,6.78648]
[1743393180346,2.54447003,1797.4,1797.2,6.78648]
[1743393180831,1.43165003,1797.4,1797.3,1.11286]
[1743393181032,0.00835003,1797.4,1797.3,1.11286]
[1743393181344,1.12115003,1797.4,1797.3,1.11286]
[1743393181748,0.00835003,1797.4,1797.3,1.11286]
[1743393182050,1.12118003,1797.4,1797.2,2.62448]
[1743393182249,2.50548003,1797.4,1797.2,2.62448]
[1743393182543,1.113,1797.1,1796.9,1.11306]
[1743393182734,1.113,1797.1,1797.0,5.6758]
[1743393183131,0.00835003,1797.4,1797.0,5.6758]
[1743393183343,0.00835003,1797.4,1797.3,1.11286]
[1743393183545,0.00835003,1797.4,1797.3,5.27286]
[1743393186545,0.00835003,1797.4,1797.2,1.4935]
[1743393186846,1.11286,1797.3,1797.2,1.4935]
[1743393187043,2.53549003,1797.4,1797.2,2.60643]
[1743393187248,1.42265003,1797.4,1797.2,2.60643]
[1743393187451,2.53550003,1797.4,1797.2,2.60643]
[1743393187843,1.11286,1797.3,1797.2,1.4935]
[1743393189545,1.113,1797.1,1797.0,4.147]
[1743393190948,1.4143,1797.2,1797.0,6.65362]
[1743393190949,2.52726,1797.2,1797.0,6.65362]
[1743393191650,1.4143,1797.2,1797.1,1.11299]
[1743393191951,1.11289,1797.3,1797.1,1.11295]
[1743393192151,1.11286,1797.3,1797.2,2.50651]
[1743393192550,1.39075003,1797.4,1797.2,2.50651]
[1743393192551,0.00835003,1797.4,1797.3,1.11286]
[1743393192755,0.00835003,1797.4,1797.3,5.25386]
[1743393192959,0.00835003,1797.4,1797.3,5.93956]
[1743393195158,0.00835003,1797.4,1797.3,9.14736]
[1743393196058,0.00835003,1797.4,1797.3,5.93956]
[1743393198256,1.11286,1797.3,1797.2,5.5146]
[1743393198456,2.11915003,1797.4,1797.3,1.11286]
[1743393198660,3.23195003,1797.4,1797.2,6.62748]
[1743393199469,2.11915003,1797.4,1797.2,5.5146]
[1743393199655,2.11915003,1797.4,1797.2,6.62752]
[1743393199855,3.23197003,1797.4,1797.2,6.62748]
[1743393200461,1.11286,1797.3,1797.2,6.62748]
[1743393200655,2.54296,1797.3,1797.2,6.62748]
[1743393200862,1.4301,1797.3,1797.2,6.62748]
[1743393201061,1.85179003,1797.4,1797.2,6.62748]
[1743393201263,3.28189003,1797.4,1797.2,6.62748]
[1743393202862,2.16905003,1797.4,1797.3,1.11286]
[1743393203359,3.2078,1797.7,1797.6,1.11268]
[1743393203560,3.2078,1797.7,1797.6,5.21368]
[1743393204972,3.2078,1797.7,1797.6,6.59978]
[1743393205170,0.00835003,1797.8,1797.7,1.11262]
[1743393205362,0.00835003,1797.8,1797.7,2.50082]
[1743393207370,1.4574,1798.2,1798.0,1.11239]
[1743393207561,2.56971,1798.2,1798.1,1.3882]
[1743393210874,1.4574,1798.2,1797.5,62.49069828]
[1743393211064,3.2078,1798.1,1797.8,2.47424]
[1743393211267,2.55736,1798.0,1797.9,5.499]
[1743393211573,2.55736,1798.0,1797.9,6.61149]
[1743393211872,1.4449,1798.0,1797.9,6.61149]
[1743393212472,4.32021,1798.1,1798.0,1.11243]
[1743393212669,4.32021,1798.1,1798.0,1.429]
[1743393212970,5.76496,1798.3,1798.1,1.11235]
[1743393213173,5.76496,1798.3,1798.2,1.429]
[1743393214576,4.6527,1798.3,1797.9,5.18245]
[1743393214770,4.32017,1798.1,1798.0,1.4013]
[1743393216175,1.11268,1797.6,1797.5,0.00835003]
[1743393216365,4.32048,1797.6,1797.5,0.00835003]
[1743393216567,5.7078,1797.6,1796.6,1.11328]
[1743393216773,1.11332,1796.6,1796.3,1.4691]
[1743393216973,3.2078,1796.7,1796.4,1.1134]
[1743393217167,3.2078,1796.7,1796.5,1.4013]
[1743393217168,1.3776,1796.6,1796.5,1.4013]
[1743393217565,2.4909,1796.6,1796.5,1.4013]
[1743393217769,3.8776,1796.6,1796.4,0.00835003]
[1743393217972,3.9475,1796.5,1795.6,3.2078]
[1743393218176,3.2078,1796.2,1795.7,1.4389]
[1743393218371,3.2078,1796.2,1795.8,1.11376]
[1743393218372,1.4339,1796.1,1795.8,1.11376]
[1743393218678,1.4339,1796.1,1795.9,1.4389]
[1743393218877,1.11367,1796.0,1795.9,1.4389]
[1743393219178,4.32147,1796.0,1795.9,1.4389]
[1743393219376,1.11373,1795.9,1795.8,0.00835003]
[1743393219571,2.54763,1795.9,1795.8,0.00835003]
[1743393222783,1.4339,1795.9,1795.8,0.00835003]
[1743393223084,2.54763,1795.9,1795.8,0.00835003]
[1743393224176,0.7529,1796.2,1795.8,4.10135003]
[1743393224177,3.9607,1796.2,1795.8,4.10135003]
[1743393224482,1.11367,1796.0,1795.9,1.3811]
[1743393224680,3.2078,1796.2,1795.9,1.3811]
[1743393224882,1.11367,1796.0,1795.9,1.3811]
[1743393227479,3.912,1796.4,1795.9,4.5889]
[1743393227787,1.11349,1796.3,1796.1,1.11359]
[1743393227983,3.2078,1796.4,1796.2,5.4746]
[1743393228178,1.11333,1796.6,1796.3,1.11348]
[1743393228377,0.00835003,1796.7,1796.6,1.1133]
[1743393228580,0.00835003,1796.7,1796.6,5.2033]
[1743393228978,0.00835003,1796.7,1796.6,6.5929]
[1743393229287,0.00835003,1796.7,1796.6,5.4796]
[1743393229785,1.12159003,1796.7,1796.6,1.3896]
[1743393230580,1.12159003,1796.7,1796.2,1.4607]
[1743393230581,3.21615003,1796.7,1796.3,4.094]
[1743393230777,1.11336,1796.5,1796.4,1.402]
[1743393231077,1.11356,1796.2,1796.1,4.094]
[1743393231284,1.11353,1796.3,1796.1,4.094]
[1743393231482,1.11355,1796.2,1796.1,4.094]
[1743393232187,1.11366,1796.1,1795.9,7.3018]
[1743393232386,1.11366,1796.1,1796.0,1.402]
[1743393235685,1.11373,1795.9,1795.8,0.00835003]
[1743393235986,1.11403,1795.5,1795.3,1.11408]
[1743393236187,1.11403,1795.5,1795.4,4.082]
[1743393236581,1.11398,1795.6,1795.4,4.082]
[1743393236781,3.2078,1795.7,1795.4,4.082]
[1743393236977,1.11386,1795.7,1795.5,1.11393]
[1743393237190,0.00835003,1795.7,1795.4,4.09035003]
[1743393237389,1.12223003,1795.7,1795.5,2.49297]
[1743393238188,0.00835003,1795.7,1795.6,1.11392]
[1743393238381,3.2078,1796.2,1795.7,2.78465]
[1743393238582,3.2078,1796.2,1795.8,7.9977]
[1743393238781,4.32138,1796.2,1796.0,1.11366]
[1743393238988,3.2078,1796.2,1796.1,1.4397]
[1743393239188,4.32135,1796.2,1796.1,1.4397]
[1743393240687,4.4035,1796.2,1795.9,1.11369]
[1743393240883,1.11361,1796.1,1795.9,2.55339]
[1743393241085,4.32139,1796.2,1796.0,1.11367]
[1743393241281,4.32139,1796.2,1796.1,1.4397]
[1743393242182,5.51709,1796.2,1796.1,1.4397]
[1743393244002,4.32139,1796.2,1796.1,1.4397]
[1743393246798,5.51709,1796.2,1796.1,1.4397]
[1743393251299,4.32139,1796.2,1796.1,1.4397]
[1743393251700,0.00835003,1796.3,1796.1,1.4397]
[1743393251894,1.11326,1796.7,1796.5,1.11333]
[1743393252100,3.2078,1796.9,1796.4,4.051]
[1743393252399,3.2078,1796.9,1796.3,4.6252]
[1743393252604,1.11336,1796.6,1796.4,4.05]
[1743393252802,1.11336,1796.5,1796.4,4.05]
[1743393253408,1.11334,1796.6,1796.4,4.05]
[1743393253609,1.11336,1796.5,1796.4,4.05]
[1743393253997,1.11336,1796.5,1796.3,0.00835003]
[1743393254201,1.11342,1796.4,1796.3,0.00835003]
[1743393255303,2.78373,1796.3,1795.1,3.2078]
[1743393255502,1.11379,1795.8,1795.7,1.4776]
[1743393255698,8.43359,1795.8,1795.7,0.78245009]
[1743393256506,4.32159,1795.8,1795.7,0.78245009]
[1743393256812,3.2078,1795.8,1795.7,0.78245009]
[1743393257006,1.11375,1795.9,1795.7,0.78245009]
[1743393257207,4.3215,1796.0,1795.8,1.11379]
[1743393257412,1.11364,1796.1,1795.8,5.22579]
[1743393257711,1.11364,1796.1,1795.9,0.7269]
[1743393257905,3.2078,1796.2,1795.9,0.7269]
[1743393258110,1.11367,1796.0,1795.9,0.7269]
[1743393258507,1.11365,1796.1,1795.9,0.7269]
[1743393258709,3.2078,1796.2,1795.9,0.7269]
[1743393259009,4.32138,1796.2,1796.0,1.4846]
[1743393259203,3.2078,1796.5,1796.0,1.4846]
[1743393259401,3.2078,1796.3,1796.0,2.59824]
[1743393259604,4.32134,1796.3,1796.0,2.59824]
[1743393260113,4.32118,1796.5,1796.1,4.104]
[1743393260307,3.2078,1796.3,1796.2,2.61023]
[1743393260611,4.32128,1796.3,1796.2,2.2141]
[1743393261806,4.32128,1796.3,1796.2,1.4967]
[1743393264913,3.2078,1796.3,1796.2,1.4967]
[1743393265814,4.32128,1796.3,1796.2,1.4967]
[1743393266218,3.2078,1796.3,1796.2,2.61025]
[1743393266420,3.2078,1796.3,1796.2,1.4967]
[1743393266618,3.2078,1796.3,1796.2,2.61025]
[1743393266811,3.2078,1796.3,1796.2,1.4967]
[1743393267415,0.00835003,1796.7,1796.2,1.4967]
[1743393267416,0.00835003,1796.7,1796.2,5.66705]
[1743393267620,1.12159003,1796.7,1796.5,1.11333]
[1743393267916,1.12159003,1796.7,1796.6,5.5218]
[1743393268119,1.12159003,1796.7,1796.6,1.4488]
[1743393269117,0.00835003,1796.7,1796.6,2.5621]
[1743393269319,1.12159003,1796.7,1796.6,1.4488]
[1743393271521,0.00835003,1796.7,1796.6,2.5621]
[1743393271923,1.12159003,1796.7,1796.6,1.4488]
[1743393272125,0.00835003,1796.7,1796.6,2.5621]
[1743393272424,0.00835003,1796.7,1796.6,5.0621]
[1743393272625,16.80021805,1796.9,1796.8,1.11317]
[1743393272825,16.80021805,1796.9,1796.8,5.16817]
[1743393273219,16.80021805,1796.9,1796.8,5.87077]
[1743393273618,16.80021805,1796.9,1796.8,8.37077]
[1743393274024,10.60391805,1796.9,1796.8,8.37077]
[1743393274723,0.00835003,1797.0,1796.9,1.11311]
[1743393274929,1.12143003,1797.0,1796.8,5.87074]
[1743393275228,1.12143003,1797.0,1796.9,1.11311]
[1743393275431,0.00835003,1797.0,1796.9,1.11311]
[1743393276225,0.00835003,1797.0,1796.9,1.80481]
[1743393277124,0.00835003,1797.0,1796.9,3.18581]
[1743393281332,1.12140003,1797.0,1796.9,3.18581]
[1743393281536,3.21615003,1797.0,1796.7,0.00835003]
[1743393281727,2.47586,1796.9,1796.8,4.022]
[1743393281923,2.47586,1796.9,1796.8,6.56137]
[1743393282231,3.21615003,1797.0,1796.9,1.11311]
[1743393282432,3.21615003,1797.0,1796.9,2.53931]
[1743393282834,4.32920003,1797.0,1796.9,2.53931]
[1743393283035,5.69190003,1797.0,1796.9,2.53931]
[1743393284038,0.00835003,1797.0,1796.9,2.53931]
[1743393284336,0.00835003,1797.0,1796.9,6.45491]
[1743393285528,0.00835003,1797.0,1796.9,8.95491]
[1743393286332,0.00835003,1797.0,1796.9,6.45491]
[1743393286534,0.00835003,1797.0,1796.9,8.95491]
[1743393286733,0.00835003,1797.0,1796.9,16.09666578]
[1743393288441,0.00835003,1797.0,1796.9,13.59666578]
[1743393288741,0.00835003,1797.0,1796.9,17.59866578]
[1743393291733,0.00835003,1797.0,1796.9,13.59666578]
[1743393291938,0.00835003,1797.0,1796.9,10.44391]
[1743393292241,0.00835003,1797.0,1796.7,1.12156003]
[1743393292446,2.51255003,1797.0,1796.8,5.10615]
[1743393292639,1.11311,1796.9,1796.8,6.53775]
[1743393292839,2.50421,1796.9,1796.8,6.53775]
[1743393293137,1.3911,1796.9,1796.8,6.53775]
[1743393295346,2.50421,1796.9,1796.8,6.53775]
[1743393295546,2.50421,1796.9,1796.8,5.4246]
[1743393295746,1.3911,1796.9,1796.8,6.53777]
[1743393295943,2.50421,1796.9,1796.8,3.978]
[1743393296247,1.3911,1796.9,1796.8,5.09117]
[1743393296641,1.3911,1796.9,1796.8,6.59157]
[1743393296839,2.50421,1796.9,1796.8,6.59157]
[1743393297140,1.3911,1796.9,1796.8,6.59157]
[1743393301148,2.50421,1796.9,1796.8,3.978]
[1743393301353,1.11317,1796.8,1796.7,3.96535003]
[1743393301646,2.56607,1796.8,1796.7,5.07859003]
[1743393301848,1.4529,1796.8,1796.7,5.07859003]
[1743393304843,3.21615003,1797.0,1796.9,1.11311]
[1743393305044,0.00835003,1797.0,1796.9,1.11311]
[1743393305239,19.17429536,1797.3,1797.2,1.11293]